fUST/lending_fUST_20240118
["ID","MTS","AMOUNT","RATE_DAILY","PERIOD"]
[311969756,1705523443749,-500.0,0.00022327,2]
[311969758,1705523443758,-407.40474853,0.00022327,2]
[311969759,1705523443768,-306.08896077,0.00022328,2]
[311969761,1705523443778,-500.0,0.00022328,2]
[311969764,1705523443787,-500.0,0.00022328,2]
[311969765,1705523443796,-500.0,0.00022328,2]
[311969767,1705523443806,-500.0,0.00022328,2]
[311969769,1705523443815,-500.0,0.00022328,2]
[311969771,1705523443824,-500.0,0.00022328,2]
[311969774,1705523443834,-500.0,0.00022328,2]
[311969775,1705523443843,-500.0,0.00022328,2]
[311969778,1705523443852,-500.0,0.00022328,2]
[311969779,1705523443861,-500.0,0.00022328,2]
[311969781,1705523443870,-500.0,0.00022328,2]
[311969783,1705523443879,-500.0,0.00022328,2]
[311969785,1705523443890,-203.82301134,0.00022328,2]
[311969787,1705523443898,-500.0,0.00022328,2]
[311969789,1705523443907,-500.0,0.00022328,2]
[311969791,1705523443917,-500.0,0.00022328,2]
[311969793,1705523443925,-504.26525817,0.00022328,2]
[311969795,1705523443934,-500.0,0.00022328,2]
[311969797,1705523443943,-500.0,0.00022328,2]
[311969799,1705523443952,-500.0,0.00022328,2]
[311969801,1705523443963,-515.74521779,0.00022328,2]
[311969803,1705523443974,-397.33178559,0.00022328,2]
[311969805,1705523443983,-500.0,0.00022328,2]
[311969807,1705523443992,-500.0,0.00022328,2]
[311969809,1705523444003,-500.0,0.00022328,2]
[311969811,1705523444012,-500.0,0.00022328,2]
[311969813,1705523444021,-500.0,0.00022328,2]
[311969816,1705523444030,-500.0,0.00022328,2]
[311969818,1705523444039,-500.0,0.00022328,2]
[311969819,1705523444051,-500.0,0.00022328,2]
[311969822,1705523444061,-500.0,0.00022328,2]
[311969823,1705523444070,-504.91326145,0.00022328,2]
[311969826,1705523444079,-500.0,0.00022328,2]
[311969827,1705523444088,-500.0,0.00022328,2]
[311969829,1705523444097,-500.0,0.00022328,2]
[311969831,1705523444106,-500.0,0.00022328,2]
[311969833,1705523444115,-500.0,0.00022328,2]
[311969835,1705523444124,-608.05,0.00022328,2]
[311969837,1705523444134,-500.0,0.00022328,2]
[311969839,1705523444144,-504.97146402,0.00022328,2]
[311969847,1705523444209,-500.0,0.00022328,2]
[311969849,1705523444219,-684.13,0.00022328,2]
[311969851,1705523444228,-500.0,0.00022328,2]
[311969853,1705523444237,-733.13,0.00022328,2]
[311969855,1705523444246,-587.53,0.00022328,2]
[311969857,1705523444255,-503.6558925,0.00022328,2]
[311969859,1705523444264,-500.0,0.00022328,2]
[311969861,1705523444274,-500.0,0.00022328,2]
[311969863,1705523444282,-500.0,0.00022328,2]
[311969865,1705523444292,-500.0,0.00022328,2]
[311969867,1705523444301,-500.0,0.00022328,2]
[311969869,1705523444310,-500.0,0.00022328,2]
[311969871,1705523444322,-2594.95,0.00022328,2]
[311969873,1705523444331,-626.84555893,0.00022328,2]
[311969875,1705523444341,-500.0,0.00022328,2]
[311969878,1705523444350,-7278.25,0.00022328,2]
[311969879,1705523444359,-500.0,0.00022328,2]
[311969882,1705523444368,-280.72371038,0.00022328,2]
[311969884,1705523444379,-500.0,0.00022328,2]
[311969885,1705523444390,-500.0,0.00022328,2]
[311969888,1705523444398,-500.0,0.00022328,2]
[311969890,1705523444408,-500.0,0.00022328,2]
[311969892,1705523444417,-500.0,0.00022328,2]
[311969894,1705523444426,-500.0,0.00022328,2]
[311969896,1705523444435,-500.0,0.00022328,2]
[311969898,1705523444444,-500.0,0.00022328,2]
[311969900,1705523444453,-1470.5,0.00022328,2]
[311969902,1705523444462,-972.66,0.00022328,2]
[311969904,1705523444471,-500.0,0.00022328,2]
[311969905,1705523444481,-500.0,0.00022328,2]
[311969907,1705523444490,-500.0,0.00022328,2]
[311969909,1705523444500,-3032.98,0.00022328,2]
[311969911,1705523444509,-500.0,0.00022328,2]
[311969913,1705523444518,-500.0,0.00022328,2]
[311969915,1705523444527,-1600.82,0.00022328,2]
[311969918,1705523444537,-500.0,0.00022328,2]
[311969919,1705523444546,-500.0,0.00022328,2]
[311969921,1705523444555,-1722.6,0.00022328,2]
[311969924,1705523444565,-500.0,0.00022328,2]
[311969925,1705523444574,-500.0,0.00022328,2]
[311969927,1705523444582,-672.58,0.00022328,2]
[311969929,1705523444592,-739.67,0.00022328,2]
[311969931,1705523444601,-500.0,0.00022328,2]
[311969933,1705523444610,-748.28,0.00022328,2]
[311969935,1705523444619,-500.0,0.00022328,2]
[311969937,1705523444628,-500.0,0.00022328,2]
[311969939,1705523444640,-500.0,0.00022328,2]
[311969941,1705523444649,-500.0,0.00022328,2]
[311969944,1705523444658,-500.0,0.00022328,2]
[311969945,1705523444667,-166.666666,0.00022431,2]
[311969948,1705523444677,-500.0,0.00022464,2]
[311969949,1705523444686,-500.0,0.00022465,2]
[311969951,1705523444696,-500.0,0.00022465,2]
[311969953,1705523444705,-500.0,0.00022465,2]
[311969955,1705523444714,-500.0,0.00022465,2]
[311969957,1705523444724,-500.0,0.00022465,2]
[311969959,1705523444733,-500.0,0.00022465,2]
[311969961,1705523444742,-500.0,0.00022465,2]
[311969963,1705523444751,-500.0,0.00022465,2]
[311969965,1705523444760,-500.0,0.00022465,2]
[311969967,1705523444769,-500.0,0.00022465,2]
[311969969,1705523444778,-253.74722663,0.00022465,2]
[311969971,1705523444787,-500.0,0.00022465,2]
[311969973,1705523444796,-500.0,0.00022465,2]
[311969975,1705523444806,-505.75645169,0.00022465,2]
[311969977,1705523444815,-500.0,0.00022465,2]
[311969979,1705523444824,-503.27883976,0.00022465,2]
[311969981,1705523444833,-500.0,0.00022465,2]
[311969983,1705523444842,-500.0,0.00022465,2]
[311969985,1705523444851,-500.0,0.00022465,2]
[311969987,1705523444859,-500.0,0.00022465,2]
[311969989,1705523444868,-500.0,0.00022465,2]
[311969991,1705523444877,-500.0,0.00022465,2]
[311969993,1705523444888,-500.0,0.00022465,2]
[311969995,1705523444897,-500.0,0.00022465,2]
[311969997,1705523444906,-500.0,0.00022465,2]
[311969999,1705523444916,-500.0,0.00022465,2]
[311970001,1705523444925,-500.0,0.00022465,2]
[311970003,1705523444934,-500.0,0.00022465,2]
[311970005,1705523444943,-500.0,0.00022465,2]
[311970007,1705523444952,-500.0,0.00022465,2]
[311970008,1705523444962,-500.0,0.00022465,2]
[311970010,1705523444975,-684.13,0.00022465,2]
[311970012,1705523444984,-733.13,0.00022465,2]
[311970014,1705523444993,-500.0,0.00022465,2]
[311970016,1705523445002,-500.0,0.00022465,2]
[311970018,1705523445011,-500.0,0.00022465,2]
[311970020,1705523445022,-500.0,0.00022465,2]
[311970023,1705523445031,-500.0,0.00022465,2]
[311970025,1705523445041,-500.0,0.00022465,2]
[311970027,1705523445051,-2594.95,0.00022465,2]
[311970029,1705523445061,-500.0,0.00022465,2]
[311970031,1705523445070,-7278.25,0.00022465,2]
[311970033,1705523445080,-500.0,0.00022465,2]
[311970035,1705523445089,-500.0,0.00022465,2]
[311970036,1705523445098,-500.0,0.00022465,2]
[311970038,1705523445108,-500.0,0.00022465,2]
[311970040,1705523445117,-500.0,0.00022465,2]
[311970042,1705523445126,-500.0,0.00022465,2]
[311970045,1705523445138,-500.0,0.00022465,2]
[311970046,1705523445148,-500.0,0.00022465,2]
[311970048,1705523445157,-500.0,0.00022465,2]
[311970051,1705523445167,-1470.5,0.00022465,2]
[311970052,1705523445177,-972.66,0.00022465,2]
[311970054,1705523445186,-500.0,0.00022465,2]
[311970057,1705523445195,-500.0,0.00022465,2]
[311970058,1705523445205,-500.0,0.00022465,2]
[311970060,1705523445214,-3032.98,0.00022465,2]
[311970062,1705523445223,-500.0,0.00022465,2]
[311970064,1705523445233,-500.0,0.00022465,2]
[311970066,1705523445243,-1600.82,0.00022465,2]
[311970068,1705523445252,-500.0,0.00022465,2]
[311970070,1705523445261,-500.0,0.00022465,2]
[311970072,1705523445270,-1722.6,0.00022465,2]
[311970074,1705523445279,-472.35327518,0.00022465,2]
[311970076,1705523445288,-500.0,0.00022465,2]
[311970078,1705523445297,-672.58,0.00022465,2]
[311970081,1705523445307,-739.67,0.00022465,2]
[311970082,1705523445316,-500.0,0.00022465,2]
[311970084,1705523445325,-748.28,0.00022465,2]
[311970086,1705523445335,-500.0,0.00022465,2]
[311970088,1705523445344,-500.0,0.00022465,2]
[311970090,1705523445354,-500.0,0.00022465,2]
[311970092,1705523445363,-454.48626207,0.00022465,2]
[311970095,1705523445372,-306.08896077,0.00022583,2]
[311970096,1705523445385,-500.0,0.00022601,2]
[311970104,1705523445449,-500.0,0.00022602,2]
[311970107,1705523445458,-500.0,0.00022602,2]
[311970108,1705523445468,-500.0,0.00022602,2]
[311970110,1705523445477,-500.0,0.00022602,2]
[311970112,1705523445487,-500.0,0.00022602,2]
[311970114,1705523445496,-500.0,0.00022602,2]
[311970116,1705523445505,-500.0,0.00022602,2]
[311970118,1705523445514,-500.0,0.00022602,2]
[311970120,1705523445523,-500.0,0.00022602,2]
[311970123,1705523445533,-500.0,0.00022602,2]
[311970125,1705523445542,-500.0,0.00022602,2]
[311970127,1705523445551,-500.0,0.00022602,2]
[311970130,1705523445560,-500.0,0.00022602,2]
[311970132,1705523445570,-500.0,0.00022602,2]
[311970134,1705523445579,-500.0,0.00022602,2]
[311970136,1705523445588,-457.80157163,0.00022602,2]
[311970138,1705523445596,-500.0,0.00022602,2]
[311970139,1705523445606,-539.85514961,0.00022602,2]
[311970141,1705523445616,-500.0,0.00022602,2]
[311970144,1705523445625,-505.51,0.00022602,2]
[311970146,1705523445636,-267.75,0.00022602,2]
[311970148,1705523445645,-461.05718927,0.00022602,2]
[311970150,1705523445653,-500.0,0.00022602,2]
[311970152,1705523445662,-500.0,0.00022602,2]
[311970155,1705523445671,-684.13,0.00022602,2]
[311970157,1705523445680,-733.13,0.00022602,2]
[311970159,1705523445690,-500.0,0.00022602,2]
[311970161,1705523445699,-336.59,0.00022602,2]
[311970163,1705523445709,-500.0,0.00022602,2]
[311970165,1705523445719,-500.0,0.00022602,2]
[311970167,1705523445728,-500.0,0.00022602,2]
[311970169,1705523445737,-500.0,0.00022602,2]
[311970170,1705523445747,-2594.95,0.00022602,2]
[311970173,1705523445755,-500.0,0.00022602,2]
[311970176,1705523445764,-7278.25,0.00022602,2]
[311970179,1705523445774,-500.0,0.00022602,2]
[311970184,1705523445783,-500.0,0.00022602,2]
[311970187,1705523445793,-183.33,0.00022602,2]
[311970190,1705523445802,-500.0,0.00022602,2]
[311970193,1705523445811,-500.0,0.00022602,2]
[311970196,1705523445821,-1470.5,0.00022602,2]
[311970198,1705523445830,-972.66,0.00022602,2]
[311970202,1705523445839,-500.0,0.00022602,2]
[311970205,1705523445849,-500.0,0.00022602,2]
[311970207,1705523445858,-3032.98,0.00022602,2]
[311970210,1705523445867,-500.0,0.00022602,2]
[311970214,1705523445876,-500.0,0.00022602,2]
[311970216,1705523445887,-1600.82,0.00022602,2]
[311970219,1705523445895,-500.0,0.00022602,2]
[311970222,1705523445904,-500.0,0.00022602,2]
[311970225,1705523445913,-1722.6,0.00022602,2]
[311970227,1705523445922,-500.0,0.00022602,2]
[311970231,1705523445931,-672.58,0.00022602,2]
[311970235,1705523445941,-739.67,0.00022602,2]
[311970238,1705523445950,-389.5685212,0.00022602,2]
[311970240,1705523445961,-748.28,0.00022602,2]
[311970243,1705523445971,-337.81788515,0.00022602,2]
[311970247,1705523445981,-500.0,0.00022602,2]
[311970250,1705523445993,-500.0,0.00022739,2]
[311970255,1705523446011,-500.0,0.00022739,2]
[311970258,1705523446028,-500.0,0.00022739,2]
[311970263,1705523446042,-500.0,0.00022739,2]
[311970268,1705523446058,-500.0,0.00022739,2]
[311970271,1705523446073,-500.0,0.00022739,2]
[311970275,1705523446090,-500.0,0.00022739,2]
[311970277,1705523446102,-500.0,0.00022739,2]
[311970281,1705523446117,-500.0,0.00022739,2]
[311970284,1705523446130,-500.0,0.00022739,2]
[311970288,1705523446146,-500.0,0.00022739,2]
[311970292,1705523446159,-539.44145748,0.00022739,2]
[311970296,1705523446172,-153.49030981,0.00022739,2]
[311970298,1705523446186,-500.0,0.00022739,2]
[311970301,1705523446201,-500.0,0.00022739,2]
[311970303,1705523446215,-500.0,0.00022739,2]
[311970306,1705523446229,-500.0,0.00022739,2]
[311970309,1705523446245,-500.0,0.00022739,2]
[311970311,1705523446260,-684.13,0.00022739,2]
[311970314,1705523446276,-733.13,0.00022739,2]
[311970316,1705523446287,-500.0,0.00022739,2]
[311970318,1705523446299,-500.0,0.00022739,2]
[311970321,1705523446313,-500.0,0.00022739,2]
[311970323,1705523446325,-500.0,0.00022739,2]
[311970326,1705523446338,-500.0,0.00022739,2]
[311970328,1705523446350,-2594.95,0.00022739,2]
[311970330,1705523446362,-500.0,0.00022739,2]
[311970332,1705523446374,-7278.25,0.00022739,2]
[311970335,1705523446389,-500.0,0.00022739,2]
[311970337,1705523446401,-500.0,0.00022739,2]
[311970339,1705523446413,-500.0,0.00022739,2]
[311970342,1705523446425,-500.0,0.00022739,2]
[311970344,1705523446437,-1470.5,0.00022739,2]
[311970346,1705523446449,-972.66,0.00022739,2]
[311970349,1705523446461,-500.0,0.00022739,2]
[311970353,1705523446473,-500.0,0.00022739,2]
[311970356,1705523446485,-3032.98,0.00022739,2]
[311970360,1705523446497,-638.41092059,0.00022739,2]
[311970364,1705523446509,-1600.82,0.00022739,2]
[311970367,1705523446522,-500.0,0.00022739,2]
[311970371,1705523446534,-500.0,0.00022739,2]
[311970374,1705523446546,-1722.6,0.00022739,2]
[311970377,1705523446559,-500.0,0.00022739,2]
[311970380,1705523446571,-672.58,0.00022739,2]
[311970384,1705523446584,-739.67,0.00022739,2]
[311970387,1705523446596,-748.28,0.00022739,2]
[311970389,1705523446608,-500.0,0.00022739,2]
[311970391,1705523446620,-306.08896077,0.00022838,2]
[311970394,1705523446631,-500.0,0.00022875,2]
[311970397,1705523446646,-372.85,0.00022875,2]
[311970401,1705523446658,-270.58,0.00022876,2]
[311970404,1705523446670,-500.0,0.00022876,2]
[311970407,1705523446682,-500.0,0.00022876,2]
[311970411,1705523446695,-500.0,0.00022876,2]
[311970415,1705523446707,-621.87,0.00022876,2]
[311970419,1705523446719,-500.0,0.00022876,2]
[311970422,1705523446732,-500.0,0.00022876,2]
[311970424,1705523446742,-500.0,0.00022876,2]
[311970435,1705523446819,-500.0,0.00022876,2]
[311970437,1705523446852,-500.0,0.00022876,2]
[311970439,1705523446861,-500.0,0.00022876,2]
[311970441,1705523446870,-500.0,0.00022876,2]
[311970443,1705523446878,-500.0,0.00022876,2]
[311970445,1705523446889,-684.13,0.00022876,2]
[311970447,1705523446897,-733.13,0.00022876,2]
[311970449,1705523446906,-500.0,0.00022876,2]
[311970450,1705523446915,-500.0,0.00022876,2]
[311970451,1705523446923,-215.24,0.00022876,2]
[311970452,1705523446932,-500.0,0.00022876,2]
[311970453,1705523446941,-500.0,0.00022876,2]
[311970454,1705523446949,-2594.95,0.00022876,2]
[311970455,1705523446960,-500.0,0.00022876,2]
[311970456,1705523446969,-7278.25,0.00022876,2]
[311970457,1705523446978,-500.0,0.00022876,2]
[311970458,1705523446987,-500.0,0.00022876,2]
[311970459,1705523446995,-500.0,0.00022876,2]
[311970460,1705523447005,-972.66,0.00022876,2]
[311970461,1705523447014,-1470.5,0.00022876,2]
[311970462,1705523447023,-500.0,0.00022876,2]
[311970463,1705523447031,-500.0,0.00022876,2]
[311970464,1705523447040,-3032.98,0.00022876,2]
[311970465,1705523447051,-1600.82,0.00022876,2]
[311970466,1705523447060,-277.13,0.00022876,2]
[311970467,1705523447068,-500.0,0.00022876,2]
[311970468,1705523447077,-1722.6,0.00022876,2]
[311970469,1705523447085,-500.0,0.00022876,2]
[311970470,1705523447094,-672.58,0.00022876,2]
[311970472,1705523447103,-739.67,0.00022876,2]
[311970473,1705523447112,-748.28,0.00022876,2]
[311970475,1705523447121,-500.0,0.00022876,2]
[311970477,1705523447131,-242.45759116,0.00022912,2]
[311970479,1705523447143,-18885.04037641,0.00022923,2]
[311970481,1705523447152,-731.049987,0.00022928,2]
[311970483,1705523447163,-731.049987,0.00022928,2]
[311970485,1705523447173,-19881.55242056,0.00022928,2]
[311970487,1705523447182,-956.0445314,0.00022938,2]
[311970489,1705523447191,-166.666666,0.00022944,2]
[311970491,1705523447201,-7979.59095178,0.00022954,2]
[311970493,1705523447210,-30972.69423377,0.00022954,2]
[311970495,1705523447219,-200.0,0.00023004,7]
[311970497,1705523447228,-151.0,0.00023013,2]
[311970499,1705523447238,-151.0,0.00023013,2]
[311970501,1705523447247,-219.09025803,0.00023013,2]
[311970503,1705523447257,-500.0,0.00023013,2]
[311970505,1705523447267,-520.3,0.00023013,2]
[311970507,1705523447276,-500.0,0.00023013,2]
[311970509,1705523447285,-217.38257896,0.00023013,2]
[311970511,1705523447295,-521.35,0.00023013,2]
[311970513,1705523447304,-500.0,0.00023013,2]
[311970515,1705523447313,-500.0,0.00023013,2]
[311970517,1705523447323,-647.99,0.00023013,2]
[311970519,1705523447332,-500.0,0.00023013,2]
[311970521,1705523447342,-500.0,0.00023013,2]
[311970523,1705523447352,-684.13,0.00023013,2]
[311970525,1705523447361,-733.13,0.00023013,2]
[311970527,1705523447370,-500.0,0.00023013,2]
[311970529,1705523447379,-500.0,0.00023013,2]
[311970531,1705523447392,-500.0,0.00023013,2]
[311970533,1705523447401,-500.0,0.00023013,2]
[311970535,1705523447410,-2594.95,0.00023013,2]
[311970537,1705523447420,-500.0,0.00023013,2]
[311970539,1705523447429,-7278.25,0.00023013,2]
[311970541,1705523447438,-150.34139212,0.00023013,2]
[311970543,1705523447449,-500.0,0.00023013,2]
[311970545,1705523447458,-500.0,0.00023013,2]
[311970547,1705523447468,-972.66,0.00023013,2]
[311970549,1705523447477,-1470.5,0.00023013,2]
[311970551,1705523447486,-500.0,0.00023013,2]
[311970553,1705523447495,-500.0,0.00023013,2]
[311970556,1705523447504,-3032.98,0.00023013,2]
[311970558,1705523447513,-1600.82,0.00023013,2]
[311970560,1705523447522,-500.0,0.00023013,2]
[311970561,1705523447532,-1722.6,0.00023013,2]
[311970563,1705523447541,-500.0,0.00023013,2]
[311970565,1705523447550,-672.58,0.00023013,2]
[311970567,1705523447559,-739.67,0.00023013,2]
[311970569,1705523447570,-748.28,0.00023013,2]
[311970571,1705523447579,-500.0,0.00023013,2]
[311970573,1705523447588,-500.0,0.0002315,2]
[311970575,1705523447597,-500.0,0.0002315,2]
[311970577,1705523447606,-235.63871188,0.0002315,2]
[311970579,1705523447615,-385.29,0.0002315,2]
[311970581,1705523447624,-251.01,0.0002315,2]
[311970583,1705523447633,-684.13,0.0002315,2]
[311970585,1705523447644,-733.13,0.0002315,2]
[311970587,1705523447653,-500.0,0.0002315,2]
[311970589,1705523447662,-500.0,0.0002315,2]
[311970591,1705523447672,-500.0,0.0002315,2]
[311970593,1705523447681,-500.0,0.0002315,2]
[311970595,1705523447690,-2594.95,0.0002315,2]
[311970597,1705523447700,-500.0,0.0002315,2]
[311970600,1705523447709,-7278.25,0.0002315,2]
[311970601,1705523447719,-500.0,0.0002315,2]
[311970603,1705523447728,-500.0,0.0002315,2]
[311970605,1705523447738,-972.66,0.0002315,2]
[311970607,1705523447747,-1470.5,0.0002315,2]
[311970609,1705523447756,-165.15,0.0002315,2]
[311970611,1705523447766,-500.0,0.0002315,2]
[311970613,1705523447775,-3032.98,0.0002315,2]
[311970615,1705523447784,-1600.82,0.0002315,2]
[311970617,1705523447793,-500.0,0.0002315,2]
[311970619,1705523447802,-1722.6,0.0002315,2]
[311970621,1705523447811,-568.82,0.0002315,2]
[311970623,1705523447820,-672.58,0.0002315,2]
[311970625,1705523447829,-739.67,0.0002315,2]
[311970627,1705523447837,-748.28,0.0002315,2]
[311970629,1705523447847,-500.0,0.0002315,2]
[311970631,1705523447856,-500.0,0.00023287,2]
[311970633,1705523447865,-328.46,0.00023287,2]
[311970635,1705523447874,-684.13,0.00023287,2]
[311970638,1705523447886,-733.13,0.00023287,2]
[311970639,1705523447895,-500.0,0.00023287,2]
[311970641,1705523447905,-500.0,0.00023287,2]
[311970643,1705523447914,-500.0,0.00023287,2]
[311970645,1705523447923,-177.86,0.00023287,2]
[311970647,1705523447932,-2594.95,0.00023287,2]
[311970649,1705523447941,-310.56,0.00023287,2]
[311970651,1705523447950,-7278.25,0.00023287,2]
[311970653,1705523447961,-500.0,0.00023287,2]
[311970655,1705523447970,-500.0,0.00023287,2]
[311970657,1705523447982,-972.66,0.00023287,2]
[311970659,1705523447991,-1470.5,0.00023287,2]
[311970661,1705523448000,-500.0,0.00023287,2]
[311970663,1705523448010,-3032.98,0.00023287,2]
[311970665,1705523448021,-1600.82,0.00023287,2]
[311970667,1705523448030,-500.0,0.00023287,2]
[311970669,1705523448040,-1722.6,0.00023287,2]
[311970671,1705523448049,-672.58,0.00023287,2]
[311970674,1705523448058,-739.67,0.00023287,2]
[311970675,1705523448068,-748.28,0.00023287,2]
[311970677,1705523448077,-500.0,0.00023287,2]
[311970679,1705523448086,-1379.30191985,0.00023288,2]
[311970681,1705523448095,-8202.78529222,0.00023288,2]
[311970683,1705523448105,-1379.30191985,0.00023288,2]
[311970685,1705523448114,-8202.78529222,0.00023288,2]
[311970688,1705523448126,-8202.78529222,0.00023288,2]
[311970689,1705523448137,-1379.30191985,0.00023288,2]
[311970691,1705523448146,-1379.30191985,0.00023288,2]
[311970693,1705523448156,-1379.30191985,0.00023288,2]
[311970696,1705523448165,-1379.30191985,0.00023288,2]
[311970697,1705523448175,-435.76322101,0.00023288,2]
[311970700,1705523448185,-425.67787235,0.00023288,2]
[311970702,1705523448194,-415.01259144,0.00023288,2]
[311970703,1705523448203,-371.75364076,0.00023288,2]
[311970705,1705523448213,-461.52609222,0.00023288,2]
[311970707,1705523448222,-444.58763317,0.00023288,2]
[311970709,1705523448231,-500.0,0.00023288,2]
[311970712,1705523448241,-250.0,0.00023288,2]
[311970714,1705523448251,-500.0,0.00023288,4]
[311970715,1705523448261,-610.44386796,0.00023288,4]
[311970717,1705523448270,-500.0,0.00023288,4]
[311970720,1705523448282,-500.0,0.00023288,4]
[311970722,1705523448291,-500.0,0.00023288,4]
[311970724,1705523448302,-610.44386796,0.00023288,4]
[311970726,1705523448311,-500.0,0.00023288,4]
[311970728,1705523448321,-500.0,0.00023288,4]
[311970729,1705523448331,-323.75323431,0.00023288,4]
[311970731,1705523448341,-500.0,0.00023288,4]
[311970734,1705523448351,-610.44386796,0.00023288,4]
[311970736,1705523448360,-500.0,0.00023288,4]
[311970737,1705523448370,-500.0,0.00023288,4]
[311970739,1705523448379,-610.44386796,0.00023288,4]
[311970741,1705523448393,-610.44386796,0.00023288,4]
[311970743,1705523448403,-500.0,0.00023288,4]
[311970746,1705523448414,-500.0,0.00023288,4]
[311970747,1705523448424,-610.44386796,0.00023288,4]
[311970749,1705523448434,-500.0,0.00023288,4]
[311970751,1705523448444,-610.44386796,0.00023288,4]
[311970753,1705523448454,-610.44386796,0.00023288,4]
[311970755,1705523448463,-500.0,0.00023288,4]
[311970757,1705523448473,-610.44386796,0.00023288,4]
[311970767,1705523448556,-500.0,0.00023288,4]
[311970769,1705523448566,-313.92068065,0.00023288,4]
[311970771,1705523448575,-500.0,0.00023288,4]
[311970773,1705523448584,-610.44386796,0.00023288,4]
[311970775,1705523448594,-405.8762855,0.00023288,4]
[311970777,1705523448603,-500.0,0.00023288,4]
[311970779,1705523448612,-610.44386796,0.00023288,4]
[311970781,1705523448621,-500.0,0.00023288,4]
[311970783,1705523448630,-500.0,0.00023288,4]
[311970785,1705523448641,-500.0,0.00023288,4]
[311970787,1705523448650,-500.0,0.00023288,4]
[311970789,1705523448659,-610.44386796,0.00023288,4]
[311970791,1705523448669,-500.0,0.00023288,4]
[311970793,1705523448678,-500.0,0.00023288,4]
[311970795,1705523448688,-610.44386796,0.00023288,4]
[311970797,1705523448697,-500.0,0.00023288,4]
[311970799,1705523448706,-500.0,0.00023288,4]
[311970801,1705523448714,-500.0,0.00023288,4]
[311970803,1705523448723,-610.44386796,0.00023288,4]
[311970805,1705523448734,-610.44386796,0.00023288,4]
[311970807,1705523448743,-500.0,0.00023288,4]
[311970809,1705523448752,-610.44386796,0.00023288,4]
[311970811,1705523448760,-500.0,0.00023288,4]
[311970813,1705523448770,-610.44386796,0.00023288,4]
[311970815,1705523448779,-610.44386796,0.00023288,4]
[311970817,1705523448788,-500.0,0.00023288,4]
[311970818,1705523448797,-565.00123365,0.00023288,4]
[311973611,1705524554083,-154.9690062,0.00019884,3]
[311973612,1705524554103,-1113.4986138,0.00019884,2]
[311973613,1705524554123,-5998.93667877,0.00019885,2]
[311973614,1705524554145,-3924.7653904,0.00019886,2]
[311973615,1705524554164,-249.108222,0.00020053,2]
[311973616,1705524554184,-2082.34429626,0.00020094,2]
[311973617,1705524554204,-3214.36009217,0.00020094,2]
[311973618,1705524554226,-498.01549845,0.00020094,2]
[311973619,1705524554246,-156.50740547,0.00020094,2]
[311973620,1705524554265,-334.58362217,0.00020094,2]
[311973621,1705524570192,-154.9690062,0.00019721,3]
[311973622,1705524570218,-934.12681523,0.00019721,2]
[311973623,1705524570298,-177.19545153,0.00019721,2]
[311973624,1705524619216,-154.9690062,0.00019721,3]
[311973625,1705524619243,-381.55001358,0.00019721,2]